Cogmind - Beta 9.6 @@@ ROGUE MODE // 2020.06.16 @ 09:29:54 Player: Teratos Result: Self-destructed Performance ------------- Evolutions (1) 500 Regions Visited (2) 400 Robots Destroyed (20) 100 Value Destroyed (592) 592 Prototype IDs (0) 0 Alien Tech Used (0) 0 Bonus (0) 0 TOTAL SCORE: 1592 Bonus ------- None Cogmind --------- Core Integrity 206/400 Matter 300/300 Energy 37/100 System Corruption 0% Temperature Cool (0) Movement Core (100) Ox1 Location -9/Materials Parts ------- > --- POWER (1) -------- (None) > --- PROPULSION (2) --- (None) > --- UTILITY (2) ------ Small Storage Unit > --- WEAPON (4) ------- (None) > --- INVENTORY (6) ---- (None) Peak State ------------ > --- POWER ------------ Ion Engine > --- PROPULSION ------- Aluminum Leg Aluminum Leg > --- UTILITY ---------- Small Storage Unit Structural Scanner > --- WEAPON ----------- Spread Laser Spread Laser Spread Laser Spread Laser > --- INVENTORY -------- (None) [Rating: 13] Favorites ----------- Power Ion Engine Engine Ion Engine Propulsion Aluminum Leg Treads Light Treads Leg Aluminum Leg Utility Small Storage Unit Device Structural Scanner Storage Small Storage Unit Weapon Spread Laser Energy Gun Spread Laser Ballistic Gun Assault Rifle Build | -11 -10 -9 ------- Run | Scr Mat Mat Slots Evolved 2 | . . 2 Power . | . . . Propulsion . | . . . Utility . | . . . Weapon 2 | . . 2 Parts Attached 20 | 6 7 7 Power 2 | 1 . 1 Engine 2 | 1 . 1 Core . | . . . Reactor . | . . . Propulsion 4 | 2 2 . Treads 2 | 2 . . Leg 2 | . 2 . Wheel . | . . . Hover . | . . . Flight . | . . . Utility 2 | 1 1 . Device 1 | . 1 . Storage 1 | 1 . . Processor . | . . . Hackware . | . . . Protection . | . . . Artifact . | . . . Weapon 12 | 2 4 6 Energy Gun 10 | 1 3 6 Energy Cannon . | . . . Ballistic Gun 2 | 1 1 . Ballistic Cannon . | . . . Launcher . | . . . Special Weapon . | . . . Impact Weapon . | . . . Slashing Weapon . | . . . Piercing Weapon . | . . . Special Melee Weapon . | . . . Unidentified Prototypes . | . . . Parts Lost 15 | . 4 11 Power 2 | . . 2 Propulsion 4 | . 2 2 Utility 1 | . . 1 Weapon 8 | . 2 6 Highest Loss Streak 8 | . 4 8 Average Slot Usage (%) 83 | . 86 79 Engine 9 | . 14 4 Treads 9 | . 19 . Leg 12 | . 4 20 Device 9 | . 7 10 Storage 12 | . 14 11 Energy Gun 24 | . 16 32 Ballistic Gun 4 | . 9 . Naked Turns . | . . . Heaviest Build 22 | 12 16 22 Greatest Support 40 | 40 40 20 Greatest Overweight (x) 5 | . 5 1 Average Overweight (x) . | . . . Largest Inventory Capacity 6 | 6 6 6 Average Capacity 5 | 4 6 6 Most Carried . | . . . Average Carried . | . . . Final Capacity 6 | 6 6 6 Final Carried . | . . . Class Distribution -------------------- 75% | Mutant 24% | Skirmisher Dominant Class ---------------- Mutant | -10/Materials Skirmisher | -9/Materials Resources | -11 -10 -9 ----------- Run | Scr Mat Mat Matter Collected 494 | 195 244 55 Remotely . | . . . Salvage Created 729 | . 450 279 Parts 35 | . 23 12 Haulers Intercepted . | . . . Recyclers Shooed 2 | . 2 . Parts Field Recycled . | . . . Retrieved Matter . | . . . Parts Self-Destructed . | . . . Prevented . | . . . Kills | -11 -10 -9 ------- Run | Scr Mat Mat Combat Hostiles Destroyed 14 | . 8 6 Guns 14 | . 8 6 Classes Destroyed 6 | . 3 3 Builder 2 | . 2 . Recycler 1 | . . 1 Watcher 3 | . 2 1 Grunt 12 | . 8 4 Brawler 1 | . . 1 Sentry 1 | . . 1 Best Kill Streak 4 | . 4 2 Combat Bots Only 4 | . 4 2 Max Kills in Single Turn 1 | . 1 1 Gunslinging . | . . . Exploded . | . . . Melee . | . . . Uniques/NPCs Destroyed . | . . . Combat | -11 -10 -9 -------- Run | Scr Mat Mat Damage Taken 1486 | . 700 786 Core 290 | . 96 194 Absorbed by Shields . | . . . Core Remaining (%) 80 | 100 61 . Volleys Fired 72 | . 48 24 Largest 4 | . 2 4 Hottest 260 | . 112 260 Shots Fired 153 | . 85 68 Gun 153 | . 85 68 Cannon . | . . . Launcher . | . . . Special . | . . . Kinetic 43 | . 43 . Thermal 110 | . 42 68 Explosive . | . . . Electromagnetic . | . . . Robot Hit Streak 17 | . 10 17 Robot Miss Streak 6 | . 4 6 Penetration Max . | . . . Secondary Targets 1 | . 1 . Max Gunslinging Chain 1 | . 1 . Shots Hit Robots 121 | . 62 59 Core Hits 60 | . 23 37 Critical Hits . | . . . Critical Kills . | . . . Critical Parts Destroyed . | . . . Melee Attacks . | . . . Impact . | . . . Slashing . | . . . Piercing . | . . . Sneak Attacks . | . . . Combat Hostiles . | . . . Follow-up Attacks . | . . . Damage Inflicted 1298 | . 785 513 Guns 1298 | . 785 513 Cannons . | . . . Explosions . | . . . Melee . | . . . Ramming . | . . . Kinetic 397 | . 397 . Thermal 901 | . 388 513 Explosive . | . . . Electromagnetic . | . . . Impact . | . . . Slashing . | . . . Piercing . | . . . Highest Corruption . | . . . Average Corruption . | . . . Corruption Purged . | . . . Overload Shots . | . . . Overflow Damage . | . . . Projectiles . | . . . Explosions . | . . . Melee . | . . . Knockbacks . | . . . Impact . | . . . Kinetic . | . . . Secondary . | . . . Self-Inflicted Damage . | . . . Shots . | . . . Rammed . | . . . Targets Rammed . | . . . Kicked . | . . . Crushed . | . . . Highest Temperature 412 | . 303 412 Average Temperature 136 | . 111 159 Received Heat Transfer 732 | . 399 333 Effects 6 | . 3 3 Shutdowns 1 | . . 1 Energy Bleed 1 | . . 1 Interference 3 | . 3 . Matter Decay 1 | . . 1 Siege Activations . | . . . Robots Corrupted . | . . . Combat Hostiles . | . . . Parts Fried . | . . . Impact Corruptions . | . . . Robots Melted . | . . . Combat Hostiles . | . . . Parts Melted 1 | . 1 . Heat Transferred 1667 | . 966 701 Parts Sabotaged . | . . . Parts Stolen . | . . . Parts Stripped . | . . . Power Chain Reactions . | . . . Missiles Intercepted . | . . . Alert | -11 -10 -9 ------- Run | Scr Mat Mat Peak Influence 212 | . 212 201 Average Influence 119 | . 121 141 Maximum Alert Level 1 | . 1 1 Low Security (%) 87 | 100 73 98 Level 1 12 | . 26 1 Level 2 . | . . . Level 3 . | . . . Level 4 . | . . . Level 5 . | . . . High Security . | . . . Max Security . | . . . Squads Dispatched 2 | . 1 1 Investigation . | . . . Extermination . | . . . Reinforcement 2 | . 1 1 Assault . | . . . Garrison . | . . . Intercept . | . . . Construction Impeded . | . . . Haulers Reinforced . | . . . Stealth | -11 -10 -9 --------- Run | Scr Mat Mat Distress Signals 1 | . 1 . Communications Jammed . | . . . Distress Signals . | . . . Times Spotted 25 | . 12 13 Peak Tracking Total 6 | . 5 6 Tactical Retreats . | . . . Traps | -11 -10 -9 ------- Run | Scr Mat Mat Traps Triggered . | . . . Indirectly . | . . . Trap Hack Attempts . | . . . Triggered . | . . . Disarmed . | . . . Reprogrammed . | . . . Reused . | . . . Traps Extracted . | . . . Installed . | . . . Triggered . | . . . Machines | -11 -10 -9 ---------- Run | Scr Mat Mat Machines Disabled . | . . . Max in Single Turn . | . . . Machines Sabotaged . | . . . Garrisons Compromised . | . . . Overloaded Fab Kills . | . . . Fab Network Shutdowns . | . . . Hacking | -11 -10 -9 --------- Run | Scr Mat Mat Machines Accessed 2 | . 1 1 Terminals 2 | . 1 1 Fabricators . | . . . Repair Stations . | . . . Recycling Units . | . . . Scanalyzers . | . . . Garrison Access . | . . . Total Hacks 4 | . 2 2 Successful 3 | . 2 1 Failed 1 | . . 1 Catastrophic . | . . . Database Lockouts . | . . . Manual . | . . . Terminals 4 | . 2 2 Fabricators . | . . . Repair Stations . | . . . Recycling Units . | . . . Scanalyzers . | . . . Garrison Access . | . . . Terminal Hacks 3 | . 2 1 Record 1 | . . 1 Robot Analysis 1 | . 1 . Emergency Access Points 1 | . 1 . Fabricator Hacks . | . . . Repair Station Hacks . | . . . Recycling Unit Hacks . | . . . Scanalyzer . | . . . Garrison Access Hacks . | . . . Unauthorized Hacks . | . . . Terminals . | . . . Fabricators . | . . . Repair Stations . | . . . Recycling Units . | . . . Scanalyzers . | . . . Garrison Access . | . . . Data Cores Recovered . | . . . Used . | . . . Hacking Detections 2 | . 1 1 Full Trace Events . | . . . Feedback Events . | . . . Feedback Blocked . | . . . Robot Schematics Acquired . | . . . Robots Built . | . . . Matter . | . . . Time . | . . . Total Robot Build Rating . | . . . Part Schematics Acquired . | . . . Parts Built . | . . . Matter . | . . . Time . | . . . Total Part Build Rating . | . . . Parts Repaired . | . . . Time . | . . . Parts Recycled . | . . . Recycled Matter . | . . . Retrieved Matter . | . . . Retrieved Components . | . . . Parts Scanalyzed . | . . . Part Schematics Acquired . | . . . Parts Damaged . | . . . Bothacking | -11 -10 -9 ------------ Run | Scr Mat Mat Used RIF Installer . | . . . Robots Hacked . | . . . Non-combat . | . . . Combat . | . . . Robot Hacks Applied . | . . . Relay Couplers Released . | . . . Robots Rewired . | . . . Allies Hacked . | . . . Hacks Repelled . | . . . Allies | -11 -10 -9 -------- Run | Scr Mat Mat Total Allies . | . . . Largest Group . | . . . Highest-Rated Group . | . . . Highest-Rated Ally . | . . . Total Orders . | . . . Ally Attacks . | . . . Total Damage . | . . . Kills . | . . . Allies Corrupted . | . . . Allies Melted . | . . . Intel | -11 -10 -9 ------- Run | Scr Mat Mat Robot Analysis Total 1 | . 1 . Derelict Logs Recovered . | . . . Drone Launches . | . . . Drone Recoveries . | . . . Exploration | -11 -10 -9 ------------- Run | Scr Mat Mat Turns Passed 851 | 76 399 376 Spaces Moved 357 | 47 167 143 Core 14 | 6 8 . Treads 138 | 41 97 . Legs 205 | . 62 143 Wheels . | . . . Hover . | . . . Flight . | . . . Fastest Speed 50 | 50 120 120 Average Speed 140 | 145 153 124 Slowest Speed 300 | 160 300 150 Overloaded Moves . | . . . Propulsion Burnouts . | . . . Robots Hopped . | . . . Cave-ins Triggered . | . . . Exploration Rate (%) 14 | 3 30 9 Regions Visited 2 Branch Regions . Pre-discovered Areas . | . . . Known Exits Taken . | . . . Unknown Exits Taken 2 | 1 1 . Scrap Searched . | . . . Spaces Dug . | . . . Terrain Destroyed . | . . . Melee . | . . . Projectile . | . . . AOE . | . . . Actions | -11 -10 -9 --------- Run | Scr Mat Mat Total 560 | 52 223 285 Wait 109 | . . 109 Move 355 | 46 166 143 Hop . | . . . Pick Up . | . . . Fast Attach 20 | 6 7 7 Attach . | . . . Detach . | . . . Swap . | . . . Drop 4 | . 2 2 Fire 72 | . 48 24 Melee . | . . . Ram . | . . . Kick . | . . . Crush . | . . . Escape Stasis . | . . . Rewire . | . . . Trap . | . . . Miscellaneous . | . . . Route ------- -11/Scrapyard -10/Materials -9/Materials History --------- Turn | Location | Event 6 | -11/Scrapyard | Discovered new exit (range 14) 77 | -11/Scrapyard | Entered Materials 312 | -10/Materials | Build established: Mutant 399 | -10/Materials | Lost 4 parts (2n2w) 464 | -10/Materials | Discovered new exit (range 4) 476 | -10/Materials | Entered another Materials area 476 | -9/Materials | Evolved 2 slots: Weapon x2 594 | -9/Materials | Lost 3 parts (1p2w) 852 | -9/Materials | Self-destructed Last Messages --------------- 00702_ K-01 Serf collects debris. 00707_ R-06 Scavenger destroyed. 00709_ K-01 Serf collects debris. 00714_ Acquired Lgt. Ion Engine. 00714_ K-01 Serf collects debris. 00729_ Acquired 22 matter. 00730_ Acquired 8 matter. 00749_ W-16 Scout destroyed. 00754_ Overheating: Matter decay (-42). 00787_ Lgt. Ion Engine destroyed. 00788_ G-34 Mercenary destroyed. 00800_ Overheating: Energy bleed (-3). 00806_ Spread Laser destroyed. 00825_ G-47 Trooper destroyed. 00830_ Aluminum Leg destroyed. 00838_ Structural Scanner destroyed. 00845_ G-34 Mercenary destroyed. 00849_ Beam Rifle destroyed. 00851_ Spread Laser destroyed. 00851_ K-01 Serf collects debris. Map ----- +----------------------------------------------------+ | ?????????????????????????????????# #????? | | ?????????????????????????????????# #????? | | ???????????????# ############## #????? | | ???????????????# + % + #????? | | ???????????????# ####### """" %# #????? | | ?????????????????????????# """"" # #????? | | ?????????????????????????# """"" # #????? | | ?????????????????????????# # #????? | | ?????????????????????????######### #????? | | ?????????????????????????????????# #????? | | ??????????????????? ############## #????? | | ??????????????????? ###??? | | ??????????????????? ""#??? | | ??????????????????? T"#??? | | ????????????????????####### ""#??? | | ??????????????????????????# ###??? | | ??????????????????????????# = #????? | | ??????????????????????????# #????? | | ??????????????????????????# #????? | | ??????????????????????????# ! = #????? | | ???????????????????######## % [ #????? | | ???????????????????# """" # =###########?? | | ???????????????????# """" # # #?? | | ???????????????????# """"*#! k# #?? | | ???????????????????# t%gk + = #?? | | ???????????????????# @# # #?? | | ???????????????????# # ##########??? | | ???????????????????######## ##??????????? | | ???????????????????#######%= #??????????? | | ?????????????# *! #??????????? | | ?????????????# +??????????? | | ?????????????# #??????????? | | ?????????????# ####### #??????????? | | ?????????????## ????????###/###??????????? | | ??????????????#???????????? ????????????? | | ??????????????????????????? ! ????????????? | | ??????????????????????????? "???????????? | | ??????????????????????????? "???????????? | | ??????????????????????????? ??????????? | | ??????????????????????????? ""??????????? | | ??????????????????????????? ""??????????? | | ??????????????????????????? "???????????? | | ????????????????????????????? ???????????? | | ?????????????????????????????T"???????????? | | ??????????????????????????????????????????? | | ??????????????????????????????????????????? | | ??????????????????????????????????????????? | | ??????????????????????????????????????????? | | ??????????????????????????????????????????? | | ??????????????????????????????????????????? | +----------------------------------------------------+ Best States ------------- Heat Dissipation 28 Energy Generation 10 Energy Capacity 250 Matter Stores 300 Matter Capacity 300 Sight Range 16 Terrain Scan Density 10 Evasion (%) 40 Recoil Reduction 2 Item Schematics ----------------- None Robot Schematics ------------------ None Fabricated ------------ Nothing Alien Tech Used ----------------- None Achievements -------------- None Challenges ------------ None Game ------ Seed CoordinationLightpackRigger Manual? 0 Play Time 00:09:06 Cumulative 41.3 hours Start 2020.06.15 @ 20:07:19 End 2020.06.16 @ 09:29:54 Sessions 3 Manual Loads 0 Difficulty Rogue Special Mode None Game No. 95 Rogue 95 Adventurer 0 Explorer 0 Win Type - Total 0 Types 0/0/0/0/0/0/0 Lore% 24 Gallery% 27 Achievement% 24 Wizard Run 0 Options --------- ASCII 0 Keyboard 0 Movement Numpad Keybinds 0 Fullscreen 1 Font 18/SmallcapsGlow Map View 76x50 Tactical HUD 1 Map Filters NONE Filters NONE Steam 1 RUN: 86d5e89f-bdc8-47db-a0cf-2fd1d007caec